[Event "44th Chess Olympiad Women 2022"]
[Site "Chennai"]
[Date "2022.08.05"]
[Round "7.42"]
[White "Clarke, Adani"]
[Black "Grishina, Alexandra"]
[Result "1-0"]
[ECO "A85"]
[WhiteElo "1812"]
[BlackElo "2012"]
[Annotator "TA"]
[PlyCount "109"]
[EventDate "2022.07.29"]
[EventType "team-tourn"]
[EventCountry "IND"]
[SourceTitle "playchess.com"]
[Source "ChessBase"]
[SourceQuality "1"]
[WhiteTeam "Jamaica"]
[BlackTeam "Lebanon"]
[WhiteTeamCountry "JAM"]
[BlackTeamCountry "LBN"]
[TimeControl "40/5400+30:1800+30"]

{[%evp 9,109,21,26,18,41,24,29,34,26,29,35,43,52,39,43,37,55,51,58,49,50,41,51,31,48,37,54,31,58,58,62,19,113,95,179,177,177,178,187,187,183,183,181,181,185,171,220,229,218,214,213,189,232,204,225,208,253,183,189,16,14,9,29,0,37,0,41,42,37,49,51,58,58,52,51,56,104,111,183,129,126,0,258,179,154,0,258,258,356,352,737,745,29968,29962,29991,29992,29992,29993,29993,29994,29994,29995]} 1. d4 {[%emt 0:00:03]} e6 {[%emt 0:00:51]} 2. c4 {[%emt 0:00:14]} f5 {[%emt 0:01:15]} 3. Nc3 {[%emt 0:00:59]} Bb4 {[%emt 0:01:47]} 4. Nf3 {[%emt 0:02:28]} Nf6 {[%emt 0:00:17]} 5. Bd2 {[%emt 0:02:17]} Bxc3 {[%emt 0:06:32]} 6. Bxc3 {[%emt 0:00:59] A85: Dutch Defence: 2 c4 Nf6 3 Nc3.} d6 {[%emt 0:02:14]} 7. g3 {[%emt 0:03:04]} Ne4 {[%emt 0:05:29] [#]} 8. Qc2 $146 {[%emt 0:02:23] White has an edge.} ({Predecessor:} 8. Rc1 b6 9. b3 Nd7 10. Bb2 Bb7 11. Bg2 O-O 12. O-O Qe8 13. Nd2 Qg6 14. f3 Nxd2 15. Qxd2 {0-1 (37) Enzendorfer,A (2139)-Bachler,R (2209) Linz 2011}) 8... Nd7 {[%emt 0:03:11]} 9. Bg2 {[%emt 0:00:22]} Ndf6 {[%emt 0:01:46]} 10. Nd2 {[%emt 0:03:34]} Nxd2 {[%emt 0:03:53]} 11. Qxd2 {[%emt 0:01:07]} O-O {[%emt 0:01:05]} 12. Qd3 {[%emt 0:04:29]} d5 {[%emt 0:04:35]} 13. O-O {[%emt 0:02:21]} c6 {[%emt 0:22:25]} 14. b3 {[%emt 0:04:45]} a5 {[%emt 0:03:49]} 15. f3 {[%emt 0:06:11]} b6 {[%emt 0:05:55]} 16. Bb2 {[%emt 0:06:19]} Ra7 {[%emt 0:01:28]} 17. Qc2 {[%emt 0:02:09]} Ba6 {[%emt 0:05:27]} 18. Rfe1 {[%emt 0:07:29]} Rc7 {[%emt 0:03:19]} 19. Rac1 {[%emt 0:01:42]} Rff7 {[%emt 0:02:19]} 20. Qd2 {[%emt 0:02:54]} Rfd7 {[%emt 0:01:11]} (20... dxc4 $11 {keeps the balance.} 21. bxc4 c5) 21. c5 $16 {[%emt 0:01:32]} Qb8 {[%emt 0:03:12]} (21... Ra7 $16) 22. cxb6 $18 {[%emt 0:03:05]} Qxb6 {[%emt 0:00:19]} 23. Bc3 {[%emt 0:00:16][%cal Bb2c3,Bc3a5,Ba5b4,Bb4c5][%mdl 32]} Qa7 {[%emt 0:04:53]} 24. Bxa5 {[%emt 0:00:45]} Rc8 {[%emt 0:00:34]} 25. Bb4 {[%emt 0:01:50] A strong pair of Bishops.} Rdd8 {[%emt 0:03:22]} 26. Bc5 {[%emt 0:01:43]} Qf7 {[%emt 0:00:43]} 27. Rc2 {[%emt 0:04:50]} Qh5 {[%emt 0:02:26]} (27... h6 $142 28. Rec1 Qc7) 28. Rec1 {[%emt 0:01:39] aiming for Be7.} Rd7 {[%emt 0:01:14]} 29. Bb4 {[%emt 0:03:59]} Bb7 {[%emt 0:00:31]} 30. Qe3 {[%emt 0:00:41]} Kf7 {[%emt 0:01:05]} 31. Ba5 {[%emt 0:01:52]} g5 {[%emt 0:00:33]} 32. Qd2 {[%emt 0:01:53]} Rg8 {[%emt 0:00:31]} 33. Kf2 {[%emt 0:05:42]} f4 {[%emt 0:02:13]} (33... Qxh2 $2 34. Rh1 Qxh1 35. Bxh1 $18) 34. gxf4 $2 {[%emt 0:05:02]} (34. Kg1 $18) 34... Qh4+ $11 {[%emt 0:00:45]} 35. Kg1 {[%emt 0:04:02] [#] Black must now prevent fxg5.} gxf4 {[%emt 0:00:25]} 36. e3 {[%emt 0:01:51]} Nh5 $1 {[%emt 0:04:29]} 37. Qf2 {[%emt 0:01:37]} Qg5 {[%emt 0:01:07]} 38. Bd2 $36 {[%emt 0:00:32][%mdl 2048] Black is under pressure.} Ke8 {[%emt 0:01:21] Threatens to win with ...Rdg7.} 39. exf4 $1 {[%emt 0:02:19]} Nxf4 {[%emt 0:00:09]} 40. Bxf4 {[%emt 0:00:06]} Qxf4 {[%emt 0:00:08]} 41. Kh1 {[%emt 0:30:25]} Rdg7 {[%emt 0:04:48]} 42. Bh3 {[%emt 0:00:00]} Rg6 {[%emt 0:02:34]} (42... Rf8 $14 {might be stronger.}) 43. Bg4 $16 {[%emt 0:00:00] Bh5 is the strong threat.} Rf6 {[%emt 0:01:22]} (43... Kd8 $16 {was called for.} 44. Re1 R8g7 45. Rxe6 Rxe6 46. Bxe6 h5) 44. Qh4 {[%emt 0:00:00]} ({White should try} 44. Qe1 $18) 44... Kf8 {[%emt 0:03:30]} 45. Qxh7 {[%emt 0:00:00] White is more active.} (45. Re1 $16) 45... Rg7 {[%emt 0:02:25][%mdl 8192]} (45... Rh6 $1 $11 {and Black is okay.} 46. Qxb7 Rxh2+ 47. Rxh2 Qxc1+ 48. Kg2 Qd2+ 49. Kh1 (49. Kg3 Rxg4+ 50. Kh3 Rh4+ 51. Kxh4 Qxd4+ 52. Kg3 Qe5+ 53. Kh3 Qh8+ 54. Kg4 Qd4+ 55. f4 Qg1+ 56. Kh3 Qe3+ 57. Kh4 Qxf4+ 58. Kh3 Qf3+ 59. Kh4 Qf4+ 60. Kh3 Qf3+ 61. Kh4 Qf4+ $11) 49... Qe1+ 50. Kg2 Qd2+ 51. Kh1 (51. Kg3 Rxg4+ 52. fxg4 Qe3+ 53. Kg2 Qe2+ 54. Kh3 Qe3+ 55. Kg2 Qe2+ 56. Kh3 Qe3+ 57. Kg2 $11) 51... Qe1+ 52. Kg2 Qd2+) 46. Qh8+ {[%emt 0:00:00]} Rg8 {[%emt 0:00:32]} 47. Qh7 {[%emt 0:00:00]} (47. Qh3 $16) 47... Rg7 $18 {[%emt 0:00:16] [#]} 48. Qd3 {[%emt 0:00:00]} (48. Qh8+ Rg8 49. Qh5 Qxd4 $16) 48... e5 {[%emt 0:04:34]} 49. dxe5 {[%emt 0:00:00]} Qxe5 {[%emt 0:00:02]} (49... Rh6 50. Qd2 Qxd2 51. Rxd2 Rg5) 50. Re2 {[%emt 0:00:00]} Qd6 {[%emt 0:09:10]} 51. Rce1 {[%emt 0:00:00] White mates.} ({Weaker is} 51. Qe3 Re7 52. Qf2 Rxe2 53. Qxe2 Rf7 $18) 51... Rh6 {[%emt 0:00:35]} 52. Re8+ {[%emt 0:00:00]} Kf7 {[%emt 0:00:09]} 53. Qf5+ {[%emt 0:00:07]} Rf6 {[%emt 0:01:35]} 54. Bh5+ {[%emt 0:00:26]} Rgg6 {[%emt 0:00:31]} 55. Bxg6+ {[%emt 0:00:09] Weighted Error Value: White=0.20 (precise) /Black=0.37} 1-0

[Event "44th Chess Olympiad Women 2022"]
[Site "Chennai"]
[Date "2022.08.05"]
[Round "7.43"]
[White "Zhang, Jasmine Haomo"]
[Black "Park, Sunwoo"]
[Result "1-0"]
[ECO "D02"]
[WhiteElo "1972"]
[BlackElo "1773"]
[Annotator "TA"]
[PlyCount "107"]
[EventDate "2022.07.29"]
[EventType "team-tourn"]
[EventCountry "IND"]
[SourceTitle "playchess.com"]
[Source "ChessBase"]
[SourceQuality "1"]
[WhiteTeam "New Zealand"]
[BlackTeam "Korea"]
[WhiteTeamCountry "NZL"]
[BlackTeamCountry "KOR"]
[TimeControl "40/5400+30:1800+30"]

{[%evp 9,107,-7,22,16,28,-4,-1,-8,-14,-19,0,-23,-27,-24,-9,-13,-11,-22,0,-10,-2,0,-2,-16,8,0,14,0,18,12,17,11,19,9,9,10,23,18,20,25,29,36,33,33,90,1,49,39,52,0,0,0,0,0,0,0,0,0,279,274,248,268,287,294,397,401,428,395,392,408,622,625,656,596,625,620,687,600,674,661,614,613,678,664,794,786,741,779,910,884,1212,1218,2348,2209,3438,2731,29985,29986,29984,29985]} 1. d4 {[%emt 0:00:07]} d5 {[%emt 0:00:07]} 2. Bf4 {[%emt 0:00:21]} Nf6 {[%emt 0:00:11]} 3. e3 {[%emt 0:00:05]} c5 {[%emt 0:00:13]} 4. Nf3 {[%emt 0:00:06]} Nc6 {[%emt 0:00:46]} 5. Nbd2 {[%emt 0:00:07]} Bf5 {[%emt 0:06:59]} 6. dxc5 {[%emt 0:07:35] D02: 1 d4 d5 2 Nf3 sidelines, including 2...Nf6 3 g3 and 2...Nf6 3 Bf4.} e6 {[%emt 0:03:39]} 7. Bb5 {[%emt 0:09:18]} Bxc5 {[%emt 0:12:52]} 8. Nb3 {[%emt 0:02:58] [#] The position is equal.} O-O $1 {[%emt 0:02:29][%cal Oc6b4]} 9. O-O {[%emt 0:04:07] [#]} (9. Bxc6 bxc6) 9... Qb6 $146 {[%emt 0:10:15]} ({Predecessor:} 9... Bd6 10. Bxc6 bxc6 11. Nbd4 Bxf4 12. exf4 Qb6 13. Ne5 Rfc8 14. Nxf5 exf5 15. b3 a5 {½-½ (30) Bao,Q (2426)-Zhang,Z (2355) Shenzhen 2017}) 10. Bd3 {[%emt 0:04:54]} Bg4 {[%emt 0:08:02][%cal Oe6e5]} 11. Be2 {[%emt 0:05:33]} Rfe8 {[%emt 0:05:41]} 12. Nxc5 {[%emt 0:03:50]} Qxc5 {[%emt 0:00:13]} 13. Ne5 {[%emt 0:00:57]} Bf5 {[%emt 0:04:37]} 14. Bd3 {[%emt 0:04:35]} Ne4 {[%emt 0:03:42]} 15. Nxc6 {[%emt 0:02:25]} bxc6 {[%emt 0:02:43]} 16. Be5 {[%emt 0:11:21]} f6 {[%emt 0:02:43]} 17. Bd4 {[%emt 0:00:11]} Qe7 {[%emt 0:00:27]} 18. f3 {[%emt 0:05:13]} Nc5 {[%emt 0:05:20]} 19. Bxf5 {[%emt 0:01:14]} exf5 {[%emt 0:00:14]} 20. Re1 {[%emt 0:01:01]} Rad8 {[%emt 0:05:30]} 21. b3 {[%emt 0:01:41]} Ne6 {[%emt 0:00:45]} 22. Bb2 {[%emt 0:00:49]} c5 {[%emt 0:02:08]} 23. Qd3 {[%emt 0:00:54]} g6 {[%emt 0:04:16]} 24. Rad1 {[%emt 0:01:42]} Nc7 {[%emt 0:05:42]} 25. Qc3 {[%emt 0:01:48]} Kg7 {[%emt 0:02:52]} 26. Qa5 {[%emt 0:01:43]} Rb8 {[%emt 0:03:22]} (26... Rd7 $14) 27. Qxa7 {[%emt 0:02:48]} (27. c4 $16) 27... Ra8 {[%emt 0:00:58]} (27... Rb5 $11 {is more appropriate.} 28. c4 dxc4) 28. Qb6 $14 {[%emt 0:00:20][%cal Ob2f6] [#] Hoping for Bxf6+!} Rf8 {[%emt 0:04:23]} 29. a4 {[%emt 0:03:19]} ({White should play} 29. e4 $14 fxe4 30. a4) 29... Ra6 $11 {[%emt 0:01:33]} 30. Qb7 {[%emt 0:00:14] Rxd5 is the strong threat.} Rfa8 {[%emt 0:00:22]} 31. e4 {[%emt 0:08:20] Strongly threatening e5.} R8a7 $1 {[%emt 0:00:49]} 32. Qb8 $36 {[%emt 0:00:12][%mdl 2048] Threatens to win with e5. White fights for an advantage.} Ra8 {[%emt 0:00:32]} 33. exd5 {[%emt 0:03:15]} Qxe1+ {[%emt 0:01:14][%mdl 8192] White stays focused until the end.} (33... Rxb8 $2 34. Rxe7+ Kg8 35. Rxc7 $18) (33... Qf7 $11 34. Qb7 R8a7) 34. Rxe1 $18 {[%emt 0:00:04][%cal Bd1e1,Be1e7,Be7c7,Bc7c4,Bc4d4,Bd4d3][%mdl 32] Really sharp!} Rxb8 {[%emt 0:00:05]} 35. Re7+ {[%emt 0:00:04]} Kg8 {[%emt 0:00:47]} 36. Rxc7 {[%emt 0:00:06][%mdl 4096] Endgame KRR-KRB} Re8 {[%emt 0:01:21]} 37. Kf2 {[%emt 0:02:28] Inhibits Re2+.} c4 {[%emt 0:00:24]} 38. Rxc4 {[%emt 0:00:08]} Ra5 {[%emt 0:00:13]} 39. Rd4 {[%emt 0:01:16]} Rd8 {[%emt 0:00:39]} (39... Ra7 $142 40. Ba3 Rb8) 40. c4 {[%emt 0:01:27][%cal Bc2c4,Bc4c5,Bc5c6][%mdl 32]} Kf7 {[%emt 0:00:32]} 41. Ba3 {[%emt 0:31:15]} Rb8 {[%emt 0:30:41]} 42. Rd3 {[%emt 0:00:08]} Rd8 {[%emt 0:00:00]} 43. Bb4 {[%emt 0:00:00]} Ra6 {[%emt 0:00:00]} 44. c5 {[%emt 0:00:00]} Rb8 {[%emt 0:00:00]} 45. Ba3 {[%emt 0:00:00]} f4 {[%emt 0:00:00]} 46. c6 {[%emt 0:00:00]} Ke8 {[%emt 0:00:00]} 47. Bd6 {[%emt 0:00:00]} Rc8 {[%emt 0:00:00]} 48. Bxf4 {[%emt 0:00:00]} Kd8 {[%emt 0:00:00]} 49. Bd6 {[%emt 0:00:00]} Ra5 {[%emt 0:00:00]} 50. Ke3 {[%emt 0:00:00]} Rca8 {[%emt 0:00:00]} 51. Kd4 {[%emt 0:00:00]} f5 {[%emt 0:00:00]} 52. Bc5 {[%emt 0:00:00] And now Bb6+ would win.} Kc7 {[%emt 0:00:00] Prevents Bb6+.} 53. Re3 {[%emt 0:00:00]} Rd8 {[%emt 0:00:00]} 54. Re7+ {[%emt 0:00:00] Weighted Error Value: White=0.13 (very precise) /Black=0.53} 1-0

[Event "44th Chess Olympiad Women 2022"]
[Site "Chennai"]
[Date "2022.08.05"]
[Round "7.44"]
[White "Henderson de La Fuente, Andrea"]
[Black "Rosario Almanzar, Raydily"]
[Result "1-0"]
[ECO "B23"]
[WhiteElo "1962"]
[BlackElo "1882"]
[Annotator "TA"]
[PlyCount "69"]
[EventDate "2022.07.29"]
[EventType "team-tourn"]
[EventCountry "IND"]
[SourceTitle "playchess.com"]
[Source "ChessBase"]
[SourceQuality "1"]
[WhiteTeam "Andorra"]
[BlackTeam "Dominican Republic"]
[WhiteTeamCountry "AND"]
[BlackTeamCountry "DOM"]
[TimeControl "40/5400+30:1800+30"]

{[%evp 9,68,0,0,-8,16,16,53,24,36,0,51,9,4,20,0,0,4,0,0,0,0,0,0,0,0,10,14,11,62,64,61,41,254,273,267,265,263,258,269,261,249,241,209,116,106,82,178,156,147,147,182,179,179,184,748,168,203,193,185,152,29999]} 1. e4 {[%emt 0:00:03]} c5 {[%emt 0:00:53]} 2. Nc3 {[%emt 0:04:26]} e6 {[%emt 0:00:19]} 3. Nge2 {[%emt 0:00:36]} a6 {[%emt 0:01:12]} 4. a4 {[%emt 0:02:34]} Nc6 {[%emt 0:03:09]} 5. g3 {[%emt 0:00:57]} Nf6 {[%emt 0:05:13]} 6. Bg2 {[%emt 0:00:14] B23: Closed Sicilian: Lines without g3.} d6 {[%emt 0:06:49] is the legacy move (6...Be7).} 7. d4 {[%emt 0:01:15]} Be7 {[%emt 0:09:39]} 8. O-O {[%emt 0:01:41] [#] White is slightly better.} Rb8 $146 {[%emt 0:10:58]} ({Predecessor:} 8... cxd4 9. Nxd4 Bd7 10. b3 Rc8 11. Nce2 O-O 12. c4 Qc7 13. Ra2 Nb4 14. Rd2 d5 15. exd5 exd5 16. cxd5 Nfxd5 17. Nf3 {½-½ (17) Larino Nieto,D (2426)-Ibarra Jerez,J (2496) Ceuta 2008}) 9. h3 {[%emt 0:03:47]} Qc7 {[%emt 0:07:17]} (9... cxd4 $11 10. Nxd4 O-O) 10. dxc5 {[%emt 0:16:56]} dxc5 {[%emt 0:00:11]} 11. Bf4 {[%emt 0:00:38]} e5 {[%emt 0:03:01]} 12. Bg5 {[%emt 0:04:47]} Be6 {[%emt 0:05:56]} 13. Bxf6 {[%emt 0:06:40]} Bxf6 {[%emt 0:00:55]} 14. Nd5 {[%emt 0:00:12]} Bxd5 {[%emt 0:04:07]} 15. exd5 {[%emt 0:00:10]} Rd8 {[%emt 0:03:56]} 16. Nc3 {[%emt 0:07:34] Ne4 is the strong threat.} O-O {[%emt 0:10:04]} 17. Ne4 {[%emt 0:21:42]} Be7 {[%emt 0:01:59]} 18. c3 $36 {[%emt 0:07:06][%mdl 2048] Inhibits Nb4. White is more active.} c4 {[%emt 0:06:22]} (18... Na7 $11) 19. Qe2 $14 {[%emt 0:08:04]} Na5 {[%emt 0:01:47]} 20. Rad1 {[%emt 0:01:04][%cal Od5d6]} f5 $2 {[%emt 0:02:19]} ({Black should play} 20... Rfe8 $14) 21. d6 $1 $18 {[%emt 0:00:22]} Bxd6 {[%emt 0:00:43]} 22. Nxd6 {[%emt 0:05:15]} Rxd6 {[%emt 0:00:03]} 23. Qxe5 {[%emt 0:00:04]} Rd7 {[%emt 0:00:12]} 24. Qe6+ {[%emt 0:01:02]} Rdf7 {[%emt 0:00:12]} 25. Bd5 {[%emt 0:00:33]} Kh8 {[%emt 0:00:05] [#] aiming for ...Re7.} 26. Rfe1 {[%emt 0:00:33]} (26. Qxf7 $1 $18 {[%mdl 512]} Rxf7 27. Bxf7) 26... Rf6 $16 {[%emt 0:04:09]} 27. Qe7 {[%emt 0:02:14]} Qb8 {[%emt 0:00:30]} (27... Qxe7 $16 {was worth a try.} 28. Rxe7 Rd6) 28. Qc5 {[%emt 0:02:09]} b6 {[%emt 0:04:03]} 29. Qe7 {[%emt 0:00:20] White is more active.} Nc6 {[%emt 0:03:44]} 30. Bxc6 {[%emt 0:01:14]} Rxc6 {[%emt 0:00:04]} 31. Rd7 {[%emt 0:00:05][%csl Gd7][%cal Re7g7] Against Rc7} Rg6 {[%emt 0:00:46]} (31... Rg8 32. Qe5 f4) 32. Kh2 $2 {[%emt 0:00:17]} (32. Re6 {White threatens Rxg6 and mate.} Rxg3+ 33. Kf1) 32... f4 {[%emt 0:00:54][%cal Rf4g3]} 33. g4 {[%emt 0:01:05] Strongly threatening Re6.} f3+ {[%emt 0:00:19]} 34. Kh1 {[%emt 0:00:07] And now Re6 would win.} Rh6 {[%emt 0:01:51]} (34... Rg8 $16 35. Qe4 b5) 35. Qxg7# {[%emt 0:00:03] Weighted Error Value: White=0.33/Black=0.60} 1-0

[Event "44th Chess Olympiad Women 2022"]
[Site "Chennai"]
[Date "2022.08.05"]
[Round "7.45"]
[White "Ortez, Andrea"]
[Black "Chuemsakul, Sarocha"]
[Result "0-1"]
[ECO "C75"]
[WhiteElo "1908"]
[BlackElo "1684"]
[Annotator "TA"]
[PlyCount "64"]
[EventDate "2022.07.29"]
[EventType "team-tourn"]
[EventCountry "IND"]
[SourceTitle "playchess.com"]
[Source "ChessBase"]
[SourceQuality "1"]
[WhiteTeam "El Salvador"]
[BlackTeam "Thailand"]
[WhiteTeamCountry "ESA"]
[BlackTeamCountry "THA"]
[TimeControl "40/5400+30:1800+30"]

{[%evp 11,64,37,47,10,27,8,3,15,12,12,29,-63,-28,-8,0,-23,-2,-49,-40,-47,-29,-83,-71,-103,-101,-114,-112,-110,-98,-102,-89,-89,-93,-116,-92,-118,-128,-149,-104,-108,-103,-124,-102,-153,-153,-143,-157,-297,-131,-443,-428,-569,-563,-553,-536]} 1. e4 {[%emt 0:00:03]} e5 {[%emt 0:00:11]} 2. Nf3 {[%emt 0:00:19]} Nc6 {[%emt 0:00:09]} 3. Bb5 {[%emt 0:00:17]} a6 {[%emt 0:00:23]} 4. Ba4 {[%emt 0:00:07]} d6 {[%emt 0:00:09]} 5. c3 {[%emt 0:00:27]} Bd7 {[%emt 0:00:23]} 6. d4 {[%emt 0:00:48]} Nf6 {[%emt 0:04:40]} 7. Qe2 {[%emt 0:04:38] C75: Ruy Lopez: Deferred Steinitz: 5 c3 Bd7 6 d4 without ...g6.} g6 {[%emt 0:04:13] [#]} 8. Bg5 $146 {[%emt 0:03:09]} ({Predecessor:} 8. O-O Qe7 9. d5 Nb8 10. Bxd7+ Nbxd7 11. c4 h5 12. Nc3 Bh6 13. h4 Ng4 14. g3 f6 15. Bxh6 Nxh6 16. Qd2 Nf7 17. Kg2 Rg8 18. Rae1 O-O-O {½-½ (27) Sharma,D (2375)-Sorokin,M (2550) Kolkata 1999}) 8... h6 {[%emt 0:02:08]} 9. Bh4 {[%emt 0:01:19] The position is equal.} g5 {[%emt 0:07:44]} 10. Bg3 {[%emt 0:00:28]} Bg7 {[%emt 0:07:29]} 11. h3 {[%emt 0:12:09]} (11. dxe5 $11 Nxe5 12. Bxd7+ Nexd7 13. Nbd2) 11... O-O {[%emt 0:01:10] Strongly threatening ...exd4.} 12. d5 {[%emt 0:11:13]} Ne7 {[%emt 0:01:36]} 13. Bc2 {[%emt 0:02:37]} Nh7 {[%emt 0:02:43]} 14. Nfd2 {[%emt 0:00:52]} (14. Nbd2 $11 {deserves consideration.}) 14... f5 $15 {[%emt 0:03:17]} 15. f3 {[%emt 0:00:48]} Nf6 {[%emt 0:04:37][%cal Bh7f6,Bf6h5,Bh5f4][%mdl 32]} 16. c4 {[%emt 0:00:50]} (16. Bf2 $11) 16... Nh5 {[%emt 0:02:01]} 17. Bh2 {[%emt 0:02:30]} Nf4 {[%emt 0:14:13]} 18. Bxf4 {[%emt 0:03:02]} exf4 {[%emt 0:00:06]} (18... gxf4 19. Nc3 $15) 19. Nc3 {[%emt 0:00:30]} fxe4 {[%emt 0:07:05]} 20. Bxe4 {[%emt 0:05:20]} Nf5 {[%emt 0:05:47]} 21. Bxf5 {[%emt 0:09:19]} Bxf5 {[%emt 0:00:13]} 22. O-O {[%emt 0:02:12]} Qf6 {[%emt 0:04:35]} 23. Kh2 {[%emt 0:04:34]} Rae8 {[%emt 0:03:57]} 24. Qf2 {[%emt 0:02:17]} Qg6 {[%emt 0:03:32] Black is more active.} 25. Rfe1 {[%emt 0:02:58]} h5 {[%emt 0:07:56][%cal Bh6h5,Bh5g4][%mdl 32]} 26. Rxe8 {[%emt 0:05:23]} Rxe8 {[%emt 0:00:19]} ({Worse is} 26... Qxe8 27. Nde4 $15) 27. Re1 {[%emt 0:01:17]} (27. Nde4 $142) 27... Rxe1 $17 {[%emt 0:05:13]} 28. Qxe1 {[%emt 0:00:03]} g4 $40 {[%emt 0:03:00][%mdl 128] Black attacks with force.} 29. Ne2 {[%emt 0:12:33]} (29. Nde4 $17 {was called for.}) 29... Be5 {[%emt 0:01:44]} ({Weaker is} 29... Bxb2 30. Nxf4 Qf7 31. g3 $15) (29... Qe8 $19 {...Bd3 is the strong threat.} 30. b3 Bd3) 30. hxg4 $2 {[%emt 0:07:52][%mdl 8192] [#]} (30. b3 $17) 30... hxg4 $19 {[%emt 0:00:06] Black is clearly winning.} 31. Qh4 {[%emt 0:02:54]} Bf6 {[%emt 0:00:36] Inhibits Qd8+.} 32. Nxf4 {[%emt 0:01:39]} Bxh4 {[%emt 0:00:13] Weighted Error Value: White=0.52/Black=0.17 (very precise)} 0-1